[Event "Romanian Superliga 2024"]
[Site "Mamaia"]
[Date "2024.10.02"]
[Round "5.16"]
[White "Cosma, Ioan"]
[Black "Miron, Lucian-Costin"]
[Result "0-1"]
[ECO "C48"]
[WhiteElo "2295"]
[BlackElo "2473"]
[Annotator "TA"]
[PlyCount "104"]
[EventDate "2024.09.26"]
[EventType "team-tourn"]
[EventCountry "ROU"]
[SourceTitle "playchess.com"]
[Source "ChessBase"]
[SourceQuality "1"]
[TimeControl "40/5400+30:1800+30"]

{[%evp 9,104,12,22,0,4,8,9,0,62,70,50,56,57,20,15,29,13,21,15,17,22,0,0,0,0,0,0,0,7,-25,23,-24,-10,-27,0,-15,-6,0,0,-25,-25,-20,0,-33,-5,0,0,-29,-25,-30,-31,-31,-14,-41,-41,-39,-37,-40,-15,-78,-51,-79,-79,-73,-73,-103,-80,-100,-104,-91,-79,-115,-97,-123,-105,-148,-134,-186,-177,-167,-158,-135,-96,-164,-164,-154,-132,-133,-133,-133,-133,-133,-118,-118,-118,-320,-333]} 1. e4 {[%emt 0:01:46]} e5 {[%emt 0:01:56]} 2. Nf3 {[%emt 0:00:11]} Nc6 {[%emt 0:00:05]} 3. Nc3 {[%emt 0:00:15]} Nf6 {[%emt 0:00:54]} 4. Bb5 {[%emt 0:01:38]} Bd6 {[%emt 0:00:51]} 5. d3 {[%emt 0:06:05]} O-O {[%emt 0:11:57]} 6. Bg5 {[%emt 0:07:50][%cal Bc1g5,Bg5h4,Bh4g3,Bg3e5,Be5d4][%mdl 32]} h6 {[%emt 0:00:34]} 7. Bh4 {[%emt 0:00:07]} Be7 {[%emt 0:00:03]} 8. Bxc6 {[%emt 0:07:19] The position is equal.} dxc6 {[%emt 0:02:56]} (8... bxc6 $11 9. Qe2 (9. Nxe5 Nxe4 10. Bxe7 Qxe7 $11) 9... d6) 9. Bg3 $1 $14 {[%emt 0:10:03]} (9. Nxe5 Nxe4 10. Bxe7 Qxe7 11. dxe4 Qxe5 $11) 9... Bg4 {[%emt 0:11:51]} 10. Bxe5 {[%emt 0:08:12]} Nd7 {[%emt 0:00:25]} 11. Bd4 {[%emt 0:03:05]} f5 {[%emt 0:07:34]} 12. h3 {[%emt 0:03:38]} fxe4 $1 {[%emt 0:01:39]} 13. Nxe4 {[%emt 0:06:35]} Bxf3 {[%emt 0:05:29]} 14. gxf3 {[%emt 0:01:18]} Bf6 {[%emt 0:00:50]} 15. Bxf6 {[%emt 0:06:52]} Nxf6 {[%emt 0:00:13]} 16. Qe2 {[%emt 0:00:12]} Qd5 {[%emt 0:03:43]} 17. a3 {[%emt 0:04:30]} Qf5 {[%emt 0:16:57]} 18. O-O-O {[%emt 0:02:35]} Nd5 {[%emt 0:01:03]} 19. h4 {[%emt 0:08:03]} Qf4+ {[%emt 0:16:44]} (19... Qxf3 $142 20. Qd2 Kh8) 20. Kb1 {[%emt 0:01:34]} (20. Nd2 {is more appropriate.}) 20... Qxf3 $11 {[%emt 0:01:17]} 21. Qd2 {[%emt 0:01:26]} Qf4 {[%emt 0:01:24]} 22. Qe2 {[%emt 0:01:05]} Nf6 {[%emt 0:01:22][%cal Bd5f6,Bf6h5,Bh5f4][%mdl 32]} 23. f3 {[%emt 0:03:45]} Nh5 {[%emt 0:01:48]} 24. Rdf1 {[%emt 0:01:58]} Rae8 {[%emt 0:00:39]} 25. Qg2 {[%emt 0:00:27] Prevents Ng3.} Re7 {[%emt 0:02:42]} 26. Qg4 {[%emt 0:02:42]} Qf5 {[%emt 0:01:05]} (26... Rxe4 $5 27. Qxh5 (27. dxe4 Ng3 $15) 27... Re3 $15) 27. Rhg1 {[%emt 0:03:05]} Ref7 {[%emt 0:00:52]} 28. Qg2 {[%emt 0:01:06]} Nf4 {[%emt 0:00:52]} 29. Qd2 {[%emt 0:00:35]} Kh7 {[%emt 0:02:46]} 30. Qe3 {[%emt 0:00:58]} b6 {[%emt 0:00:36]} 31. Ng3 {[%emt 0:00:34]} Qf6 {[%emt 0:01:46]} 32. Rh1 {[%emt 0:01:55]} Kh8 {[%emt 0:00:29]} 33. Ne4 {[%emt 0:00:19]} Qe7 {[%emt 0:00:51]} 34. Qd2 {[%emt 0:00:42]} (34. Qf2 $11 {keeps the balance.}) 34... Ng6 $17 {[%emt 0:01:36] Black is more active.} 35. h5 {[%emt 0:01:16]} Nf4 {[%emt 0:00:17]} 36. Qc3 {[%emt 0:00:41]} c5 {[%emt 0:00:35]} 37. Re1 {[%emt 0:00:33]} Qd7 {[%emt 0:00:39]} 38. Nd2 {[%emt 0:00:44][%cal Be4d2,Bd2c4,Bc4e5][%mdl 32]} Rf5 {[%emt 0:00:45]} 39. Nc4 {[%emt 0:01:29]} Rxh5 {[%emt 0:01:02]} ({Reject} 39... Nxh5 $6 40. f4 $11) 40. Ne5 {[%emt 0:00:00]} Qf5 {[%emt 0:00:00]} 41. Rhg1 {[%emt 0:06:56]} Rg5 {[%emt 0:19:02]} 42. Rh1 {[%emt 0:04:08]} Kh7 {[%emt 0:01:59]} 43. Qc4 {[%emt 0:03:06]} (43. Re4 $17) 43... Ng6 {[%emt 0:04:55]} 44. Nxg6 {[%emt 0:05:13]} Rxg6 {[%emt 0:00:10]} 45. Rhf1 {[%emt 0:03:49]} Qf7 {[%emt 0:03:02] [#] Wards off Re7. ...Qxc4 would now be deadly.} 46. Qa4 {[%emt 0:03:45]} (46. Qa6 $17 {might work better.}) 46... a5 $19 {[%emt 0:00:12]} 47. Re5 {[%emt 0:01:11]} Rf6 {[%emt 0:01:28]} 48. Qe4+ {[%emt 0:00:28]} Qg6 {[%emt 0:00:20] ...Qxe4 is the strong threat.} 49. Qe2 {[%emt 0:01:39]} Rf5 {[%emt 0:00:47]} 50. Re7 {[%emt 0:02:57]} R8f7 {[%emt 0:00:16]} 51. Re6 {[%emt 0:01:13]} R5f6 {[%emt 0:00:17]} 52. Re8 {[%emt 0:00:19] [#]} (52. Re3 $17) 52... Rxf3 $3 {[%emt 0:01:57][%mdl 512] Weighted Error Value: White=0.19 (very precise) /Black=0.09 (flawless) .  Loses game:     	White=1     	---        Mistake:       	White=4     	Black=2      Inaccurate:     	White=8     	Black=2      OK:         	White=14    	Black=23     Best:        	---       	Black=2      Strong:       	White=1     	Black=1      Brilliant:      	---       	Black=1} 0-1

[Event "Romanian Superliga 2024"]
[Site "Mamaia"]
[Date "2024.10.02"]
[Round "5.17"]
[White "Carmaciu, Lucian-Catalin"]
[Black "Itkis, Boris"]
[Result "1/2-1/2"]
[ECO "B13"]
[WhiteElo "2368"]
[BlackElo "2279"]
[Annotator "TA"]
[PlyCount "38"]
[EventDate "2024.09.26"]
[EventType "team-tourn"]
[EventCountry "ROU"]
[SourceTitle "playchess.com"]
[Source "ChessBase"]
[SourceQuality "1"]
[TimeControl "40/5400+30:1800+30"]

{[%evp 9,38,-2,0,4,11,0,4,0,7,9,10,10,10,0,4,0,26,0,0,0,36,-41,0,-53,0,-4,0,0,0,-1,-8]} 1. d4 {[%emt 0:00:07]} Nf6 {[%emt 0:00:05]} 2. Nc3 {[%emt 0:00:11]} d5 {[%emt 0:00:08]} 3. Bf4 {[%emt 0:00:09]} c5 {[%emt 0:00:04]} 4. e3 {[%emt 0:00:11]} cxd4 {[%emt 0:00:13]} 5. exd4 {[%emt 0:00:07]} Bg4 {[%emt 0:00:05]} 6. f3 {[%emt 0:01:40]} Bd7 {[%emt 0:00:10]} 7. Nb5 {[%emt 0:00:36]} Bxb5 {[%emt 0:00:04]} 8. Bxb5+ {[%emt 0:00:11]} Nc6 {[%emt 0:00:01] [#] ...Qa5+ would now be deadly.} 9. c3 {[%emt 0:00:37]} e6 {[%emt 0:00:17]} 10. Ne2 {[%emt 0:00:32]} Bd6 {[%emt 0:00:36]} 11. Qd2 {[%emt 0:02:38]} O-O {[%emt 0:00:19]} 12. h4 {[%emt 0:09:56][%cal Bh2h4,Bh4h5][%mdl 32]} Ne8 {[%emt 0:11:01]} 13. h5 {[%emt 0:01:10]} Bxf4 {[%emt 0:00:20]} 14. Nxf4 {[%emt 0:00:31]} Nd6 {[%emt 0:03:25]} 15. Bd3 {[%emt 0:01:16]} (15. h6 $14 g5 (15... Nxb5 $2 {perishes.} 16. hxg7 Re8 17. Nh5 $18) 16. Bxc6) 15... Qg5 {[%emt 0:11:49]} 16. O-O-O {[%emt 0:03:04]} ({Better is} 16. h6 $11 g6 17. Nh3 Qxd2+ 18. Kxd2) 16... Na5 {[%emt 0:02:17]} (16... b5 $15) 17. b3 {[%emt 0:01:31] The position is equal.} Rac8 {[%emt 0:01:46][%cal Oc8c3]} 18. Kb2 {[%emt 0:01:38]} b5 {[%emt 0:01:21]} 19. Ne2 {[%emt 0:19:31]} Qxd2+ {[%emt 0:03:20] Weighted Error Value: White=0.17 (very precise) /Black=0.12 (very precise) .  Mistake:       	White=2     	Black=1      Inaccurate:     	White=1     	Black=3      OK:         	White=3     	Black=8} 1/2-1/2

[Event "Romanian Superliga 2024"]
[Site "Mamaia"]
[Date "2024.10.02"]
[Round "5.18"]
[White "Negrean, Andrei"]
[Black "Nastore, Pavel-Alexandru"]
[Result "1/2-1/2"]
[ECO "B55"]
[WhiteElo "2267"]
[BlackElo "2252"]
[Annotator "TA"]
[PlyCount "138"]
[EventDate "2024.09.26"]
[EventType "team-tourn"]
[EventCountry "ROU"]
[SourceTitle "playchess.com"]
[Source "ChessBase"]
[SourceQuality "1"]
[TimeControl "40/5400+30:1800+30"]

{[%evp 32,138,49,50,64,62,72,33,45,32,27,10,21,0,10,6,6,6,9,6,8,0,0,0,0,0,0,0,0,0,0,-33,-27,-29,-14,-54,0,0,0,0,0,0,48,41,47,34,72,19,18,22,16,10,107,108,125,80,88,82,88,0,0,0,0,0,0,0,0,0,0,0,0,0,0,0,0,0,0,0,0,0,0,0,0,0,0,0,0,0,0,0,0,0,0,0,0,0,0,0,0,0,0,0,29977,0,0,0,0,0,0]} 1. e4 {[%emt 0:00:06]} c5 {[%emt 0:04:13]} 2. Nf3 {[%emt 0:00:16]} d6 {[%emt 0:00:03]} 3. d4 {[%emt 0:00:14]} cxd4 {[%emt 0:00:04]} 4. Nxd4 {[%emt 0:00:12]} Nf6 {[%emt 0:00:03]} 5. Bd3 {[%emt 0:00:43]} g6 {[%emt 0:00:05]} 6. c4 {[%emt 0:04:19] B55: Sicilian: 2...d6 3 d4 cxd4 4 Nxd4 Nf6 5 f3.} Bg7 {[%emt 0:00:09]} 7. h3 {[%emt 0:00:24]} O-O {[%emt 0:00:15]} 8. Nc3 {[%emt 0:01:39]} Nc6 {[%emt 0:00:53]} 9. Be3 {[%emt 0:03:08]} Nd7 {[%emt 0:08:13]} 10. Nde2 {[%emt 0:05:16]} Nde5 {[%emt 0:02:55]} 11. b3 $146 {[%emt 0:03:33]} ({Predecessor:} 11. f4 Nxd3+ 12. Qxd3 Nb4 13. Qd2 Be6 14. b3 f5 15. Rc1 Qa5 16. O-O fxe4 17. Nd4 {0-1 Mikoleizig,E (2206)-Santana Montjoy,J (1729) Las Palmas Insular-chT Primera-B 2012 (6.3)}) 11... Qa5 {[%emt 0:02:22]} 12. Rc1 {[%emt 0:01:46]} Nxd3+ {[%emt 0:06:14]} 13. Qxd3 {[%emt 0:00:06]} f5 {[%emt 0:04:35]} 14. O-O {[%emt 0:08:47]} Kh8 {[%emt 0:21:16]} 15. exf5 {[%emt 0:14:28]} Bxf5 {[%emt 0:02:09]} 16. Qd2 {[%emt 0:01:17]} Rf7 {[%emt 0:10:21]} 17. Bh6 {[%emt 0:04:49]} Raf8 {[%emt 0:01:53]} 18. Bxg7+ {[%emt 0:01:42]} Kxg7 {[%emt 0:00:05]} 19. Qe3 {[%emt 0:03:58]} Qc5 {[%emt 0:10:56]} 20. Qxc5 {[%emt 0:05:40]} dxc5 {[%emt 0:00:10]} 21. f3 {[%emt 0:03:29]} Rd8 {[%emt 0:02:12]} 22. Ng3 {[%emt 0:09:25]} Bc8 {[%emt 0:04:38]} 23. Nge4 {[%emt 0:03:46]} b6 {[%emt 0:00:25]} 24. Rfe1 {[%emt 0:01:24]} h6 {[%emt 0:00:51]} 25. Nf2 {[%emt 0:06:25]} Rd2 {[%emt 0:04:46]} 26. Re2 {[%emt 0:02:47]} Rxe2 27. Nxe2 {[%emt 0:00:01]} Rf8 {[%emt 0:01:35]} 28. Kf1 {[%emt 0:01:15]} Rd8 {[%emt 0:06:39]} 29. Ke1 {[%emt 0:01:24]} Nb4 {[%emt 0:00:52]} 30. a3 {[%emt 0:01:51]} Nc6 {[%emt 0:03:29]} 31. Rc3 {[%emt 0:03:10]} Bf5 {[%emt 0:00:17]} 32. Re3 {[%emt 0:02:25]} Kf7 {[%emt 0:00:44]} 33. g4 {[%emt 0:00:51]} Bc8 {[%emt 0:00:27]} (33... Bb1 $15) 34. Nd3 $11 {[%emt 0:00:48]} Kf6 {[%emt 0:01:41]} 35. Kd2 {[%emt 0:01:24]} Bb7 {[%emt 0:00:39]} 36. f4 {[%emt 0:00:30]} e5 {[%emt 0:00:04]} (36... Nd4 $11 {is superior.}) 37. Kc3 $14 {[%emt 0:02:55]} exf4 {[%emt 0:00:07]} 38. Nexf4 {[%emt 0:00:42]} Nd4 {[%emt 0:01:17]} 39. Ne5 {[%emt 0:00:43]} ({White should play} 39. b4 $16) 39... Re8 $1 $11 {[%emt 0:01:14]} 40. Nfxg6 {[%emt 0:00:00]} Bc6 {[%emt 0:00:00]} 41. Re1 {[%emt 0:07:07]} Bg2 {[%emt 0:03:17] [#]} (41... Nf3 $11 {remains equal.} 42. Nxf3 Rxe1 43. Nxe1 Kxg6) 42. h4 $1 $16 {[%emt 0:03:34]} Re6 {[%emt 0:03:45]} 43. Nf8 {[%emt 0:04:44]} Re7 {[%emt 0:02:01]} 44. b4 {[%emt 0:03:59]} Nc6 {[%emt 0:06:11] [#]} 45. Ned7+ {[%emt 0:11:17]} ({Better is} 45. Nfd7+ $1 $16 Kg7 46. bxc5) 45... Kf7 $11 {[%emt 0:01:38]} 46. Rxe7+ {[%emt 0:01:00]} Kxe7 {[%emt 0:04:18]} 47. bxc5 {[%emt 0:00:24]} bxc5 {[%emt 0:01:23]} 48. g5 $1 {[%emt 0:00:13]} hxg5 {[%emt 0:00:05]} 49. hxg5 {[%emt 0:00:07]} Be4 {[%emt 0:00:27]} ({Much less strong is} 49... Bh3 50. g6 $15 (50. Nxc5 Kxf8 51. Na6 Bf1 $17)) 50. Nxc5 {[%emt 0:04:50]} Bf5 {[%emt 0:00:14]} 51. Nfd7 {[%emt 0:00:08]} Bxd7 {[%emt 0:00:14]} 52. Nxd7 {[%emt 0:00:18]} Kxd7 {[%emt 0:00:03]} 53. c5 {[%emt 0:01:07]} Ne5 {[%emt 0:05:09]} (53... a6 $5) 54. Kb4 {[%emt 0:00:24]} Kc6 {[%emt 0:00:45]} 55. Ka5 {[%emt 0:00:06]} Kb7 {[%emt 0:01:02]} 56. Kb5 {[%emt 0:00:33]} a6+ {[%emt 0:00:10]} 57. Kb4 {[%emt 0:00:09]} Nd3+ {[%emt 0:02:21]} 58. Kc4 $1 {[%emt 0:00:50]} Nf4 {[%emt 0:00:08]} 59. Kb4 {[%emt 0:00:11]} Kb8 {[%emt 0:02:15]} 60. Ka5 {[%emt 0:00:38]} Ka7 {[%emt 0:00:04]} 61. Kb4 {[%emt 0:00:37]} Kb7 {[%emt 0:00:48]} (61... Ne6 $5 62. g6 $8 Ng7 $11) 62. Ka5 {[%emt 0:00:55]} Ng6 {[%emt 0:00:17]} (62... Ne6 $5 63. g6 $8 Ng7 $11) 63. c6+ {[%emt 0:00:39]} Ka7 {[%emt 0:00:18]} 64. c7 {[%emt 0:00:08]} Ne7 {[%emt 0:00:13]} (64... Kb7 {simplifies} 65. c8=Q+ Kxc8 66. Kxa6 Kc7) 65. g6 {[%emt 0:00:05]} Kb7 {[%emt 0:00:21]} 66. g7 {[%emt 0:00:03]} Nc6+ {[%emt 0:00:08]} 67. Ka4 {[%emt 0:00:02]} Ne7 $1 {[%emt 0:00:04]} 68. Ka5 {[%emt 0:00:03]} Nc6+ {[%emt 0:00:07]} 69. Ka4 {[%emt 0:00:03]} Ne7 $1 {[%emt 0:00:06]} 1/2-1/2

[Event "Romanian Superliga 2024"]
[Site "Mamaia"]
[Date "2024.10.02"]
[Round "5.19"]
[White "Baranciuc, Alexandr"]
[Black "Petkov, Momchil"]
[Result "0-1"]
[ECO "E11"]
[WhiteElo "2333"]
[BlackElo "2540"]
[Annotator "TA"]
[PlyCount "84"]
[EventDate "2024.09.26"]
[EventType "team-tourn"]
[EventCountry "ROU"]
[SourceTitle "playchess.com"]
[Source "ChessBase"]
[SourceQuality "1"]
[TimeControl "40/5400+30:1800+30"]

{[%evp 13,84,29,20,-2,0,7,15,-2,0,0,0,0,0,0,0,0,1,0,-11,-13,0,0,0,-17,23,18,33,0,-13,-20,0,-43,-36,-77,-81,-62,-66,-99,-112,-122,-147,-136,-138,-179,-92,-89,-83,-221,-217,-216,-211,-225,-225,-238,-238,-238,-238,-238,-238,-238,-238,-238,-206,-202,-203,-787,-778,-29980,-29981,-29981,-29981,-29979,-29977]} 1. d4 {[%emt 0:00:18]} d5 {[%emt 0:00:10]} 2. Nf3 {[%emt 0:00:18]} Nf6 {[%emt 0:00:15]} 3. c4 {[%emt 0:00:06]} e6 {[%emt 0:00:14]} 4. g3 {[%emt 0:00:06]} Bb4+ {[%emt 0:00:11]} 5. Bd2 {[%emt 0:00:06]} Be7 {[%emt 0:00:07]} 6. Bg2 {[%emt 0:00:07]} Nbd7 {[%emt 0:00:19]} 7. O-O {[%emt 0:00:40]} O-O {[%emt 0:00:15]} 8. Bc3 {[%emt 0:02:44]} b6 {[%emt 0:00:41]} 9. cxd5 {[%emt 0:00:32]} exd5 {[%emt 0:00:08]} 10. Bd2 {[%emt 0:00:09] The position is equal.} Bb7 {[%emt 0:00:39]} 11. Nc3 {[%emt 0:00:07]} Re8 {[%emt 0:00:30]} 12. Bf4 {[%emt 0:00:29]} Nf8 {[%emt 0:00:46]} 13. Rc1 {[%emt 0:04:02]} Ne6 {[%emt 0:00:35]} 14. e3 {[%emt 0:00:34]} Bb4 {[%emt 0:03:37]} 15. Bg5 {[%emt 0:12:49]} Nxg5 {[%emt 0:02:21]} 16. Nxg5 {[%emt 0:00:02]} c5 {[%emt 0:02:06]} 17. dxc5 {[%emt 0:01:07]} bxc5 {[%emt 0:01:27]} 18. Nf3 {[%emt 0:06:58]} Ne4 {[%emt 0:18:11]} 19. Nd2 {[%emt 0:11:05]} Ba6 {[%emt 0:05:37]} 20. Re1 {[%emt 0:06:14][%cal Rd2e4]} Bxc3 {[%emt 0:00:39]} 21. bxc3 {[%emt 0:00:03]} Bd3 {[%emt 0:01:43] Repels Qc2} 22. c4 {[%emt 0:15:27]} Qf6 $1 {[%emt 0:02:20]} 23. f4 {[%emt 0:09:05][%cal Od1b3]} Qb2 {[%emt 0:05:40]} 24. Nxe4 {[%emt 0:00:09]} dxe4 {[%emt 0:00:55]} 25. Qb3 {[%emt 0:00:06]} Rab8 {[%emt 0:00:57]} 26. Qxb2 {[%emt 0:02:50]} Rxb2 {[%emt 0:00:07]} 27. Bf1 {[%emt 0:00:01]} Reb8 {[%emt 0:17:16] Black has more active pieces.} 28. Rcd1 {[%emt 0:01:47]} Bxf1 {[%emt 0:03:43]} (28... Rxa2 29. Bxd3 exd3 30. Rxd3) (28... g6 $19 29. Bxd3 exd3 30. Rxd3 Rxa2) 29. Rxf1 $17 {[%emt 0:00:05]} Rxa2 $19 {[%emt 0:00:27][%mdl 4096] Endgame. KRR-KRR} 30. Rd5 {[%emt 0:01:05] This costs White the game.} (30. Ra1 $17 Rc2 31. Rxa7) 30... g6 {[%emt 0:05:39]} 31. Rf2 {[%emt 0:00:04]} Rxf2 {[%emt 0:06:40]} 32. Kxf2 {[%emt 0:00:02] KR-KR} a5 $1 {[%emt 0:00:12]} 33. Ke1 {[%emt 0:10:58]} a4 {[%emt 0:01:27] aiming for ...a3.} 34. Rxc5 {[%emt 0:02:45] [#]} Ra8 {[%emt 0:00:08] Prevents Ra5} 35. Rb5 {[%emt 0:00:07]} a3 {[%emt 0:00:14] Prevents Rb2. ( -> ...a2)} 36. Rb1 {[%emt 0:00:02]} a2 {[%emt 0:00:55]} 37. Ra1 {[%emt 0:00:01]} Kf8 {[%emt 0:00:29] Threatens to win with ...Ra3.} 38. Kd2 {[%emt 0:00:45]} Ra3 {[%emt 0:00:10]} 39. Kc2 $2 {[%emt 0:01:16]} (39. Kc1) 39... Rxe3 {[%emt 0:01:35]} 40. Rxa2 {[%emt 0:00:00] [#]} Re2+ $1 {[%emt 0:00:00] Black mates.} 41. Kb3 {[%emt 0:00:07]} Rxa2 {[%emt 0:00:11]} 42. Kxa2 {[%emt 0:00:04]} e3 {[%emt 0:00:06] Weighted Error Value: White=0.49/Black=0.06 (flawless) .  Mistake:       	White=2     	Black=1      Inaccurate:     	White=5     	Black=1      OK:         	White=14    	Black=14     Best:        	White=1     	Black=2      Strong:       	---       	Black=2} 0-1

[Event "Romanian Superliga 2024"]
[Site "Mamaia"]
[Date "2024.10.02"]
[Round "5.20"]
[White "Stoyanov, Tsvetan"]
[Black "Sapocinic, Semion"]
[Result "1/2-1/2"]
[ECO "C01"]
[WhiteElo "2471"]
[BlackElo "2219"]
[Annotator "TA"]
[PlyCount "95"]
[EventDate "2024.09.26"]
[EventType "team-tourn"]
[EventCountry "ROU"]
[SourceTitle "playchess.com"]
[Source "ChessBase"]
[SourceQuality "1"]
[TimeControl "40/5400+30:1800+30"]

{[%evp 18,95,2,6,19,10,17,12,22,21,10,11,23,18,22,0,0,0,0,0,0,0,0,0,0,0,10,0,0,0,8,0,0,0,12,12,8,0,0,0,0,0,0,0,0,0,0,0,0,0,0,0,21,0,0,0,0,0,0,0,0,0,0,0,0,0,0,0,89,0,0,0,0,0,0,0,0,0,0,0]} 1. e4 {[%emt 0:00:03]} e5 {[%emt 0:00:05]} 2. Nf3 {[%emt 0:00:00]} Nf6 {[%emt 0:00:00]} 3. Nxe5 d6 4. Nf3 Nxe4 {[%emt 0:00:22]} 5. d3 {[%emt 0:00:58]} Nf6 {[%emt 0:00:09]} 6. d4 {[%emt 0:00:19]} d5 {[%emt 0:01:39]} 7. h3 {[%emt 0:00:31]} Bd6 {[%emt 0:02:25]} 8. Bd3 {[%emt 0:00:09]} O-O {[%emt 0:00:15]} 9. O-O {[%emt 0:00:06]} h6 {[%emt 0:00:59]} 10. Nc3 {[%emt 0:00:28][%cal Bb1c3,Bc3e2,Be2f4][%mdl 32]} c6 {[%emt 0:00:41]} 11. Re1 {[%emt 0:00:38]} Re8 {[%emt 0:02:49]} 12. Rxe8+ {[%emt 0:00:32]} Qxe8 {[%emt 0:00:16]} 13. Ne2 {[%emt 0:00:04]} Ne4 {[%emt 0:02:10]} 14. Bf4 {[%emt 0:00:11]} Bxf4 {[%emt 0:03:53]} 15. Nxf4 {[%emt 0:00:02]} Bf5 {[%emt 0:04:59]} 16. c4 {[%emt 0:00:10]} dxc4 {[%emt 0:00:54]} 17. Bxc4 {[%emt 0:00:02]} Nd7 {[%emt 0:00:25]} 18. Qb3 {[%emt 0:00:11]} Nd6 {[%emt 0:05:48]} 19. Re1 {[%emt 0:01:48]} Qd8 {[%emt 0:01:54]} 20. g4 {[%emt 0:08:16]} Nxc4 {[%emt 0:03:46]} 21. Qxc4 {[%emt 0:01:49]} Nb6 {[%emt 0:01:54]} 22. Qc5 {[%emt 0:16:56]} Bd7 {[%emt 0:01:25]} 23. Re7 {[%emt 0:04:53] Droht Ne5.} Qf8 {[%emt 0:10:58]} 24. Ne5 {[%emt 0:09:38][%csl LRd7,LRf7]} Re8 {[%emt 0:01:57]} 25. Rxe8 {[%emt 0:02:52]} (25. Nxd7 $2 {geht unter.} Qxe7 26. Nxb6 Qxc5 (26... axb6 27. Qxe7 Rxe7 28. Kf1 $19) 27. dxc5 axb6 28. cxb6 Ra8 $19) (25. Rxd7 $2 {zu gefräßig.} Qxc5 26. dxc5 Nxd7 27. Nxd7 f6 $19) 25... Qxe8 {[%emt 0:09:31]} 26. Qa3 {[%emt 0:04:23]} Nc8 {[%emt 0:03:55]} 27. Qa5 {[%emt 0:08:47] Und Qc7 würde nun gewinnen.} f6 {[%emt 0:08:34]} 28. Neg6 {[%emt 0:08:46]} b6 {[%emt 0:04:41]} 29. Qc3 {[%emt 0:11:10]} Ne7 {[%emt 0:04:36]} 30. Qb3+ {[%emt 0:03:59]} Kh7 {[%emt 0:01:38]} 31. Nh4 {[%emt 0:00:12]} Nd5 {[%emt 0:02:22]} 32. Qc2+ {[%emt 0:01:20]} Kg8 {[%emt 0:00:41]} 33. Nxd5 {[%emt 0:00:05]} cxd5 $11 {[%emt 0:00:41][%mdl 4096] Endspiel. KQB-KQN} 34. Ng2 {[%emt 0:03:28]} Qc8 {[%emt 0:03:21]} 35. Qd2 {[%emt 0:03:28]} (35. Qxc8+ {vereinfacht} Bxc8 36. Nf4 Bb7 37. Kh2) 35... h5 {[%emt 0:04:06]} 36. gxh5 {[%emt 0:01:28]} Bxh3 {[%emt 0:01:00] [#] ...Qg4 ist eine echte Drohung.} 37. Nf4 {[%emt 0:00:14]} Be6 {[%emt 0:02:29]} 38. Ng6 {[%emt 0:02:22]} Qd8 {[%emt 0:03:42] Es drohte Ne7+} 39. Qe3 {[%emt 0:02:16]} Bf7 {[%emt 0:00:46]} 40. Ne7+ {[%emt 0:00:00]} Kh7 {[%emt 0:00:00]} 41. Qd3+ {[%emt 0:07:59]} Kh8 {[%emt 0:05:48]} 42. Ng6+ {[%emt 0:00:12]} Bxg6 {[%emt 0:04:54]} (42... Kg8 $11) 43. Qxg6 {[%emt 0:05:41] KQ-KQ} ({Günstiger ist} 43. hxg6 $16 Qc8 44. Qg3) 43... Qc8 {[%emt 0:01:24] Die Stellung ist ausgeglichen.} 44. Kg2 {[%emt 0:00:31]} Qc1 {[%emt 0:02:01]} 45. Qf5 {[%emt 0:01:03]} Qc4 {[%emt 0:01:36]} 46. Qd7 {[%emt 0:02:09]} Qxd4 {[%emt 0:00:27]} 47. Qe8+ {[%emt 0:00:03]} Kh7 {[%emt 0:00:07] [#] Droht ...Qg4+ und aus.} 48. Qg6+ {[%emt 0:00:04] Eine ausgeglichene Partie nicht ohne Feinheiten.   Gewichteter Fehlerwert: Weiß=0.05 (makellos) /Schwarz=0.05 (makellos) .  Fehler:       	Weiß=1     	Schwarz=1     OK:         	Weiß=17    	Schwarz=23    Bester:       	Weiß=1     	Schwarz=2} 1/2-1/2